bitfinex-derivatives/quotes_ETHF0:USTF0_20250107
["timestamp","ask_amount","ask_price","bid_price","bid_amount"]
[1736249200683,3.20978971,3654.2,3654.1,0.27365]
[1736249201389,3.20978971,3654.3,3654.2,0.27364]
[1736249201582,3.20978971,3654.3,3654.2,4.46984168]
[1736249201781,3.20978971,3654.3,3654.2,3.48144]
[1736249201981,4.19819139,3654.3,3654.2,3.48144]
[1736249204281,0.98840168,3654.3,3654.2,3.48144]
[1736249204680,0.98840168,3654.3,3654.2,3.89864]
[1736249204882,4.06508971,3654.4,3654.2,3.625]
[1736249205090,3.62968971,3654.4,3654.3,0.27363]
[1736249205291,3.20978971,3654.4,3654.3,0.27363]
[1736249205983,3.20978971,3654.4,3654.3,4.58065038]
[1736249207084,3.20978971,3654.5,3654.4,0.27362]
[1736249207389,10.03090383,3654.5,3654.4,0.27362]
[1736249208287,10.44150039,3654.5,3654.4,0.27362]
[1736249209991,10.44150039,3654.5,3654.4,0.73132]
[1736249210694,6.82111412,3654.5,3654.4,5.03759603]
[1736249215790,6.82111412,3654.5,3654.4,0.73132]
[1736249217187,3.20978971,3654.6,3654.5,0.27362]
[1736249217391,3.20978971,3654.6,3654.5,0.69032]
[1736249219296,4.19819139,3654.7,3654.5,0.4167]
[1736249219602,4.19819139,3654.7,3654.6,0.27361]
[1736249219797,4.19819139,3654.7,3654.6,0.68991]
[1736249220098,11.13787588,3654.7,3654.6,0.68991]
[1736249220495,11.54845609,3654.7,3654.6,0.68991]
[1736249220894,3.62036992,3654.7,3654.6,3.89771]
[1736249221996,2.13822492,3655.0,3654.9,0.27359]
[1736249222397,9.1251693,3655.0,3654.9,0.27359]
[1736249224603,6.98694438,3655.0,3654.9,0.27359]
[1736249225002,6.98694438,3655.0,3654.9,0.71829]
[1736249228911,6.9418125,3655.1,3654.9,0.4447]
[1736249229103,2.59232492,3655.2,3655.0,0.4207]
[1736249229304,0.4541,3655.2,3655.1,0.27357]
[1736249229806,7.2781591,3655.2,3655.1,0.27357]
[1736249230404,9.41638402,3655.2,3655.1,0.27357]
[1736249232006,8.96228402,3655.2,3655.1,0.27357]
[1736249232209,6.8240591,3655.2,3655.1,0.27357]
[1736249232504,2.13822492,3655.3,3655.0,0.8646]
[1736249232708,8.978397,3655.3,3655.2,0.27356]
[1736249232909,2.13822492,3655.3,3655.2,0.27356]
[1736249233096,8.978397,3655.3,3655.2,0.27356]
[1736249233504,6.84017208,3655.3,3655.2,0.27356]
[1736249233906,6.69763097,3655.4,3655.3,0.27356]
[1736249234209,6.69763097,3655.3,3655.1,0.98840168]
[1736249234409,6.69763097,3655.3,3655.2,0.27356]
[1736249234606,6.72162866,3655.4,3655.3,0.27356]
[1736249234809,0.455,3655.5,3655.4,0.27355]
[1736249235205,7.17662866,3655.5,3655.4,0.27355]
[1736249239511,7.07662866,3655.5,3655.4,0.27355]
[1736249241904,6.72162866,3655.5,3655.4,0.27355]
[1736249242409,6.72162866,3655.5,3655.4,3.48135]
[1736249243309,2.13822492,3655.7,3655.6,0.27353]
[1736249244213,3.1266266,3655.8,3655.5,1.44430168]
[1736249244414,3.1266266,3655.8,3655.7,0.27353]
[1736249249217,0.98840168,3655.8,3655.7,0.27353]
[1736249250321,2.13822492,3655.9,3655.8,0.27352]
[1736249250722,2.13822492,3655.9,3655.8,0.70182]
[1736249252214,3.1266266,3656.1,3656.0,0.2735]
[1736249252617,9.82835238,3656.1,3656.0,0.2735]
[1736249252818,9.82835238,3656.1,3656.0,0.6966]
[1736249253022,10.10185238,3656.1,3656.0,0.6966]
[1736249253523,7.96362746,3656.1,3656.0,0.6966]
[1736249254621,10.10185238,3656.1,3656.0,0.6966]
[1736249256117,7.96362746,3656.1,3656.0,0.6966]
[1736249258324,1.26191168,3656.1,3656.0,0.6966]
[1736249258821,3.4001366,3656.1,3656.0,0.6966]
[1736249262829,1.26191168,3656.1,3656.0,0.6966]
[1736249264033,4.47170139,3656.1,3656.0,0.6966]
[1736249265331,4.88214956,3656.1,3656.0,0.6966]
[1736249266631,1.67235985,3656.1,3656.0,0.6966]
[1736249268033,1.26191168,3656.1,3656.0,0.6966]
[1736249268940,0.27351,3656.1,3656.0,0.6966]
[1736249269139,1.67235985,3656.1,3656.0,0.6966]
[1736249269937,1.39884985,3656.1,3656.0,0.6966]
[1736249270436,1.67236985,3656.1,3656.0,0.6966]
[1736249270637,4.19705041,3656.1,3656.0,0.6966]
[1736249271338,3.20864873,3656.1,3656.0,0.6966]
[1736249273338,4.19705041,3656.1,3656.0,0.6966]
[1736249275939,4.47057041,3656.1,3656.0,0.6966]
[1736249276441,4.88100756,3656.1,3656.0,0.6966]
[1736249279236,5.95265676,3656.1,3656.0,0.6966]
[1736249280533,5.54221961,3656.1,3656.0,0.6966]
[1736249282044,5.95265676,3656.1,3656.0,0.6966]
[1736249283142,0.27355,3655.7,3655.6,7.78327081]
[1736249283446,1.26195168,3655.7,3655.6,7.78328081]
[1736249284943,5.95268676,3655.7,3655.6,3.48136]
[1736249288644,4.96428508,3655.7,3655.6,3.48136]
[1736249288844,5.95268676,3655.7,3655.6,3.48136]
[1736249290948,5.95268676,3655.7,3655.6,3.2078]
[1736249291149,5.95268676,3655.7,3655.6,3.48136]
[1736249297851,5.95268676,3655.7,3655.6,0.27356]
[1736249315660,6.36302676,3655.7,3655.3,1.286]
[1736249315856,0.27357,3655.4,3655.3,1.55958]
[1736249316055,0.27357,3655.4,3655.3,1.286]
[1736249316356,0.27357,3655.4,3655.3,0.4316]
[1736249316763,3.48411141,3655.4,3655.3,0.4316]
[1736249318262,13.93923619,3655.4,3655.3,0.4316]
[1736249319460,5.36899134,3655.4,3655.3,0.4316]
[1736249319868,6.35739302,3655.4,3655.3,0.4316]
[1736249320461,0.27362,3654.8,3654.7,0.27362]
[1736249320662,0.27362,3654.8,3654.7,0.72242]
[1736249320962,0.27361,3654.9,3654.8,0.27361]
[1736249321367,1.26201168,3655.0,3654.9,0.27361]
[1736249321761,5.54075496,3655.0,3654.9,0.27361]
[1736249322268,0.27359,3654.9,3654.8,1.1455]
[1736249324174,3.48214825,3654.9,3654.8,1.1455]
[1736249329873,0.27359,3654.9,3654.8,1.1455]
[1736249333466,0.27359,3654.9,3654.8,0.8719]
[1736249337079,3.48243174,3654.9,3654.8,0.8719]
[1736249338180,3.89300801,3654.9,3654.8,0.8719]
[1736249340784,3.48243174,3654.9,3654.8,0.8719]
[1736249343388,3.89300627,3654.9,3654.8,0.8719]
[1736249343880,3.89300627,3654.9,3654.8,1.86030168]
[1736249344093,3.89300627,3654.9,3654.8,5.34170168]
[1736249344904,0.27359,3654.9,3654.8,5.34170168]
[1736249345495,2.13845484,3655.0,3654.9,0.27359]
[1736249346299,2.41203484,3655.1,3655.0,0.27359]
[1736249346502,2.41203484,3655.1,3655.0,1.26199168]
[1736249347395,2.13845484,3655.1,3655.0,1.26199168]
[1736249347601,2.41203484,3655.1,3655.0,1.26199168]
[1736249347901,2.41203484,3655.1,3655.0,0.27359]
[1736249349396,2.13845484,3655.1,3655.0,1.26199168]
[1736249349598,2.41203484,3655.1,3655.0,1.26199168]
[1736249350697,0.27358,3655.1,3655.0,1.26199168]
[1736249352701,2.13845484,3655.2,3655.1,0.27358]
[1736249353197,2.13845484,3655.2,3655.1,0.71548]
[1736249354505,2.13845484,3655.4,3655.1,4.74192604]
[1736249354706,2.13845484,3655.4,3655.3,0.27356]
[1736249355305,2.13845484,3655.4,3655.3,1.12126]
[1736249359200,0.27356,3655.4,3655.3,1.12126]
[1736249360003,2.13845484,3655.5,3655.3,0.8477]
[1736249360202,2.41200484,3655.5,3655.4,0.27356]
[1736249360404,0.27355,3655.5,3655.4,0.27356]
[1736249365009,3.48238174,3655.6,3655.5,0.27355]
[1736249365210,3.20884174,3655.6,3655.5,0.27355]
[1736249365407,3.48238174,3655.6,3655.5,0.27355]
[1736249366310,3.89288014,3655.6,3655.5,0.27355]
[1736249366711,3.61934014,3655.6,3655.5,0.27355]
[1736249366901,3.89288014,3655.6,3655.5,0.27355]
[1736249367103,3.61934014,3655.6,3655.5,0.27355]
[1736249367513,3.20884174,3655.6,3655.5,0.73345]
[1736249368710,2.13838935,3655.7,3655.5,0.4599]
[1736249369012,2.13838935,3655.7,3655.6,0.27354]
[1736249369913,3.12679103,3655.7,3655.6,0.27354]
[1736249370116,3.40032103,3655.7,3655.6,0.27354]
[1736249371711,3.12679103,3655.7,3655.6,0.27354]
[1736249372215,3.40032103,3655.7,3655.6,0.27354]
[1736249372418,2.13838935,3655.7,3655.6,0.27354]
[1736249372820,2.13838935,3655.7,3655.6,1.26194168]
[1736249373118,2.13838935,3655.7,3655.6,0.27354]
[1736249374515,2.41191935,3655.8,3655.7,0.27353]
[1736249376411,2.13838935,3655.8,3655.7,0.27353]
[1736249376618,2.41191935,3655.8,3655.7,0.27353]
[1736249378517,0.27353,3655.8,3655.7,0.27353]
[1736249381522,2.13855901,3655.8,3655.7,0.27353]
[1736249381824,2.41208901,3655.8,3655.7,0.27353]
[1736249382523,3.48236174,3655.9,3655.8,0.27353]
[1736249383327,3.89283634,3655.9,3655.8,0.27353]
[1736249388622,3.61931634,3655.9,3655.8,0.27353]
[1736249388820,0.6840046,3655.9,3655.8,0.27353]
[1736249389630,0.4104746,3655.9,3655.8,0.27353]
[1736249389928,0.6840046,3655.9,3655.8,0.27353]
[1736249390826,0.4104746,3655.9,3655.8,1.26193168]
[1736249391425,0.4104746,3655.9,3655.8,2.11433168]
[1736249391929,3.21114268,3656.0,3655.9,0.27353]
[1736249392422,3.21114268,3656.0,3655.9,0.69953]
[1736249395230,3.62161728,3656.0,3655.9,0.69953]
[1736249398026,3.62161728,3656.1,3656.0,0.27352]
[1736249398232,3.89513728,3656.1,3656.0,0.27352]
[1736249398427,4.61001896,3656.1,3656.0,0.27352]
[1736249398830,3.62161728,3656.1,3656.0,0.27352]
[1736249400633,3.62161728,3656.1,3656.0,1.26192168]
[1736249401632,3.89513728,3656.1,3656.0,0.27352]
[1736249401833,0.27352,3656.1,3656.0,0.27352]
[1736249402025,0.70752,3656.1,3656.0,0.27352]
[1736249402632,0.27353,3655.9,3655.8,4.57355604]
[1736249402827,1.26193168,3655.9,3655.8,4.57355604]
[1736249403434,1.26193168,3655.9,3655.8,0.27353]
[1736249404735,1.67240628,3655.9,3655.8,0.27353]
[1736249406834,0.4104746,3655.9,3655.8,0.27353]
[1736249411137,0.6840046,3655.9,3655.8,0.27353]
[1736249412335,0.27354,3655.7,3655.6,4.30002604]
[1736249412546,1.26194168,3655.7,3655.6,4.30002604]
[1736249412837,0.27355,3655.6,3655.5,4.57358604]
[1736249413138,1.17035,3655.6,3655.5,4.30002604]
[1736249413642,1.17035,3655.6,3655.5,4.57358604]
[1736249413843,1.60865,3655.6,3655.5,4.57358604]
[1736249414544,6.71118969,3655.6,3655.5,0.27356]
[1736249415344,6.43763969,3655.6,3655.1,1.90300168]
[1736249415539,0.98840168,3655.5,3655.4,0.27357]
[1736249415940,1.26196168,3655.5,3655.4,0.27357]
[1736249417444,1.26196168,3655.5,3655.1,0.9146]
[1736249417445,1.39887628,3655.5,3655.1,0.9146]
[1736249417749,1.39887628,3655.5,3655.2,0.27358]
[1736249417750,0.27358,3655.3,3655.2,0.27358]
[1736249418240,7.09742786,3655.5,3654.9,7.50782604]
[1736249418438,0.71289,3655.2,3655.1,0.27359]
[1736249418642,1.70129168,3655.2,3655.1,0.27359]
[1736249418946,4.69450697,3655.3,3655.0,0.98840168]
[1736249419150,4.96808697,3655.3,3655.2,0.27359]
[1736249419950,0.6840546,3655.3,3655.2,0.27359]
[1736249420745,0.4104746,3655.3,3654.9,3.2078]
[1736249420951,1.26200168,3655.1,3655.0,0.27359]
[1736249422744,1.67247628,3655.1,3655.0,0.27359]
[1736249423140,2.11547628,3655.1,3655.0,0.27359]
[1736249426554,5.32359637,3655.1,3655.0,0.27359]
[1736249427755,4.91312177,3655.1,3655.0,0.27359]
[1736249428757,4.47012177,3655.1,3655.0,0.27359]
[1736249429662,4.19652177,3655.1,3655.0,0.27359]
[1736249430155,0.98840168,3655.1,3655.0,0.27359]
[1736249430455,1.26199168,3655.1,3655.0,0.27359]
[1736249432860,3.39950726,3655.1,3655.0,0.27359]
[1736249433655,2.13751558,3655.1,3655.0,0.27359]
[1736249434161,2.13751558,3655.2,3654.8,1.43760168]
[1736249434457,2.13751558,3655.2,3655.1,0.27359]
[1736249435562,2.41110558,3655.2,3655.1,0.27359]
[1736249436463,2.13751558,3655.2,3655.1,0.27359]
[1736249437366,2.41110558,3655.2,3655.1,0.27359]
[1736249439573,0.27359,3655.2,3655.1,0.27359]
[1736249443476,3.48171009,3655.2,3655.1,0.27359]
[1736249444180,3.20812009,3655.2,3654.8,0.4492]
[1736249444369,1.26201168,3655.1,3655.0,0.2736]
[1736249446475,0.27361,3655.1,3655.0,0.2736]
[1736249447375,1.26201168,3655.1,3655.0,0.2736]
[1736249447575,4.47013177,3655.1,3655.0,0.2736]
[1736249448683,4.88070749,3655.1,3655.0,0.2736]
[1736249450182,1.6725874,3655.1,3655.0,0.2736]
[1736249451372,1.26201168,3655.1,3655.0,0.2736]
[1736249452884,0.27361,3655.0,3654.9,0.27361]
[1736249454185,0.68418572,3655.0,3654.9,0.27361]
[1736249457190,4.96821809,3655.0,3654.9,0.27361]
[1736249457589,0.27361,3654.9,3654.8,0.72282]
[1736249459796,5.37784147,3654.9,3654.8,0.72282]
[1736249460795,0.68418572,3654.9,3654.8,0.72282]
[1736249462189,1.26201168,3654.9,3654.7,0.8863]
[1736249462392,0.27362,3654.8,3654.7,0.8863]
[1736249463796,10.72707855,3654.8,3654.7,0.4543]
[1736249464295,10.45345855,3654.8,3654.5,0.73204]
[1736249464493,1.26204168,3654.6,3654.5,0.4584]
[1736249464693,1.26204168,3654.6,3654.5,0.73204]
[1736249465396,1.26204168,3654.6,3654.5,0.4584]
[1736249465601,1.26204168,3654.6,3654.5,0.73204]
[1736249466298,1.6726174,3654.6,3654.5,0.73204]
[1736249467199,1.6726174,3654.6,3654.5,0.4584]
[1736249468694,0.27365,3654.4,3654.3,0.9126]
[1736249468893,1.26205168,3654.4,3654.3,0.9126]
[1736249470204,6.36387872,3654.4,3654.3,0.9126]
[1736249472992,1.6726274,3654.4,3654.3,0.9126]
[1736249474000,5.54415068,3654.4,3654.3,0.9126]
[1736249475299,5.9547264,3654.4,3654.3,0.9126]
[1736249475799,5.9547264,3654.4,3654.3,0.4577]
[1736249475999,0.27366,3654.3,3654.2,0.4361]
[1736249476706,0.27366,3654.3,3654.2,0.70977]
[1736249477407,0.27366,3654.3,3654.2,0.4361]
[1736249477810,10.25345621,3654.3,3654.2,0.4361]
[1736249478009,10.66403193,3654.3,3654.2,0.4361]
[1736249479107,10.66403193,3654.3,3654.2,0.70977]
[1736249479613,10.66403193,3654.3,3654.2,0.4361]
[1736249481110,14.94355718,3654.3,3654.2,0.4361]
[1736249481311,14.94355718,3654.3,3654.2,0.70977]
[1736249482109,14.94355718,3654.3,3654.2,0.4361]
[1736249488907,11.73575718,3654.3,3654.2,0.4361]
[1736249489107,14.94355718,3654.3,3654.2,0.4361]
[1736249491214,10.66403193,3654.3,3654.2,0.4361]
[1736249491914,3.61837572,3654.3,3654.2,1.42450168]
[1736249492215,3.89203572,3654.3,3654.2,1.69817168]
[1736249493520,5.62055237,3654.3,3654.2,1.69817168]
[1736249494111,5.62055237,3654.3,3654.2,0.27367]
[1736249494312,5.62055237,3654.3,3654.2,0.73457]
[1736249494711,3.48146,3654.3,3654.2,0.73457]
[1736249498621,0.27366,3654.3,3654.2,0.73457]
[1736249500116,3.20863855,3654.4,3654.3,0.27366]
[1736249502221,3.20863855,3654.4,3654.3,1.26206168]
[1736249502823,4.69016976,3654.5,3654.4,0.27365]
[1736249503920,6.61010125,3654.8,3654.2,1.14507]
[1736249503921,4.2010116,3654.6,3654.2,2.13347168]
[1736249504225,4.4746516,3654.6,3654.5,0.27364]
[1736249505624,1.67268619,3654.6,3654.5,0.27364]
[1736249506921,1.26204168,3654.6,3654.5,0.27364]
[1736249508127,0.98840168,3654.6,3654.5,0.27364]
[1736249508331,1.39904619,3654.6,3654.5,0.27364]
[1736249508721,1.67268619,3654.6,3654.5,0.27364]
[1736249508924,0.41064451,3654.6,3654.5,0.27364]
[1736249509529,0.41064451,3654.6,3654.5,0.69334]
[1736249509922,0.41064451,3654.6,3654.5,1.68174168]
[1736249510726,4.69016976,3654.7,3654.6,0.27364]
[1736249511228,4.69016976,3654.7,3654.6,0.69474]
[1736249511930,5.34806957,3654.9,3654.7,0.27363]
[1736249511931,4.27952525,3654.8,3654.7,0.27363]
[1736249512131,4.27952525,3654.8,3654.7,1.26203168]
[1736249513233,2.14256301,3654.8,3654.7,1.26203168]
[1736249514325,3.21384452,3654.9,3654.7,0.98840168]
[1736249514527,3.21384452,3654.9,3654.8,0.27362]
[1736249517043,4.2022462,3655.0,3654.9,0.27361]
[1736249518044,0.98840168,3655.0,3654.9,0.27361]
[1736249519642,3.12910577,3655.0,3654.9,0.27361]
[1736249521251,4.24821577,3655.0,3654.9,0.27361]
[1736249521750,4.24821577,3655.0,3654.4,7.50782604]
[1736249521751,10.91880917,3655.0,3654.4,7.50782604]
[1736249521948,0.27364,3654.6,3654.5,0.27364]
[1736249522850,3.48144,3654.6,3654.5,0.27364]
[1736249523753,0.27366,3654.4,3654.3,0.27364]
[1736249523952,1.26206168,3654.4,3654.3,0.27364]
[1736249525345,0.27368,3654.2,3654.1,0.27367]
[1736249525552,4.46988168,3654.2,3654.1,0.27367]
[1736249526946,4.88057937,3654.2,3654.1,0.27367]
[1736249527947,1.67277937,3654.2,3654.1,0.27367]
[1736249528152,4.88057937,3654.2,3654.1,0.27367]
[1736249528553,4.88056937,3654.2,3654.1,0.27367]
[1736249528955,4.60689937,3654.2,3654.1,0.27367]
[1736249530156,3.61849769,3654.2,3654.1,0.27367]
[1736249531252,4.88056937,3654.2,3654.1,0.27367]
[1736249532556,3.61849769,3654.2,3654.1,0.27367]
[1736249532756,3.89216769,3654.2,3654.1,0.27367]
[1736249533345,3.61849769,3654.2,3654.1,0.27367]
[1736249533857,3.89216769,3654.2,3654.1,0.27367]
[1736249534256,3.61849769,3654.2,3654.1,0.27367]
[1736249534653,3.89216769,3654.2,3654.1,0.27367]
[1736249542450,4.88056937,3654.2,3654.1,0.27367]
[1736249547165,9.16009462,3654.2,3654.1,0.27367]
[1736249549962,4.88056937,3654.2,3654.1,0.27367]
[1736249554563,4.60689937,3654.2,3653.9,0.4382]
[1736249554763,0.27368,3654.1,3654.0,0.27367]
[1736249556666,3.89294544,3654.1,3654.0,0.27367]
[1736249557164,0.27368,3654.0,3653.9,0.71189]
[1736249557666,1.26208168,3654.0,3653.9,0.71189]
[1736249559273,4.88134489,3654.0,3653.9,0.71189]
[1736249560670,1.67277714,3654.0,3653.9,0.71189]
[1736249562071,1.26208168,3654.0,3653.9,0.71189]
[1736249562461,0.27368,3654.0,3653.9,0.71189]
[1736249563475,0.68437546,3654.0,3653.9,0.71189]
[1736249564560,4.96390071,3654.0,3653.9,0.71189]
[1736249565472,5.95230239,3654.0,3653.9,0.71189]
[1736249566674,1.67277714,3654.0,3653.9,0.71189]
[1736249567068,6.36606527,3654.0,3653.9,0.71189]
[1736249567967,1.26208168,3654.0,3653.9,0.71189]
[1736249569374,11.71413484,3654.0,3653.9,0.71189]
[1736249571976,6.37845751,3654.0,3653.9,0.71189]
[1736249573374,1.27447392,3654.0,3653.9,0.71189]
[1736249574371,5.96776205,3654.0,3653.9,0.71189]
[1736249574579,6.37845751,3654.0,3653.9,0.71189]
[1736249579588,6.37845751,3654.0,3653.6,4.30002604]
[1736249579589,12.87294772,3654.0,3653.6,4.30002604]
[1736249579783,1.26210168,3653.7,3653.6,4.57373604]
[1736249579984,1.27449392,3653.7,3653.6,4.57373604]
[1736249581188,6.37847751,3653.7,3653.6,0.27371]
[1736249582285,0.27372,3653.5,3653.4,0.71452]
[1736249582489,1.26212168,3653.5,3653.4,0.71452]
[1736249583181,1.27451392,3653.5,3653.4,0.4408]
[1736249583386,6.10477751,3653.5,3653.3,0.4238]
[1736249583582,12.91033353,3653.5,3653.0,0.4386]
[1736249583778,4.46995168,3653.1,3653.0,0.4386]
[1736249584076,1.26214168,3653.3,3653.1,0.26134776]
[1736249584276,0.27374,3653.2,3653.1,0.4263]
[1736249584687,6.98724907,3653.2,3653.1,0.4263]
[1736249584883,6.98724907,3653.2,3653.1,1.68845168]
[1736249585190,0.98840168,3653.6,3653.1,1.41470168]
[1736249585392,0.98840168,3653.2,3653.1,0.4263]
[1736249585583,9.88683683,3653.4,3653.1,0.4263]
[1736249585787,6.67903683,3653.7,3653.3,0.98840168]
[1736249585988,0.27372,3653.6,3653.4,0.73322]
[1736249586184,0.98840168,3653.5,3653.4,0.8981]
[1736249586391,0.27374,3653.3,3653.1,0.70005]
[1736249586779,0.27374,3653.3,3653.2,0.4385]
[1736249587185,7.13154348,3653.3,3653.2,0.4385]
[1736249587489,0.27374,3653.2,3653.1,0.4263]
[1736249587691,1.69394168,3653.2,3653.1,0.4263]
[1736249589292,2.10474007,3653.2,3653.1,0.4263]
[1736249589687,1.11633839,3653.2,3653.1,0.4263]
[1736249589892,1.11633839,3653.2,3652.5,3.2078]
[1736249589893,0.5,3652.6,3652.4,3.56011604]
[1736249590096,0.27382,3652.2,3652.1,8.17009157]
[1736249590297,1.26222168,3652.2,3652.1,8.17009157]
[1736249590490,8.05302962,3652.2,3652.1,8.17009157]
[1736249590686,7.06462794,3652.2,3652.1,8.17009157]
[1736249590887,3.2078,3652.5,3652.1,8.17009157]
[1736249591091,1.26222168,3652.2,3652.1,8.17009157]
[1736249591288,0.27384,3651.9,3651.8,0.01014848]
[1736249591495,3.48164,3651.9,3651.8,0.01014848]
[1736249591692,11.22200417,3651.9,3651.8,0.01014848]
[1736249592299,11.32760249,3651.9,3651.8,8.48e-06]
[1736249593193,14.94397861,3651.9,3651.8,8.48e-06]
[1736249594599,14.94397861,3651.9,3651.2,0.4603]
[1736249594600,14.67013861,3651.9,3651.2,0.4603]
[1736249594801,11.46456088,3651.9,3651.2,0.4603]
[1736249595000,0.27387,3651.8,3651.6,0.27389]
[1736249595296,4.71259839,3651.9,3651.2,0.4603]
[1736249595507,3.2078,3651.3,3651.2,0.4603]
[1736249596299,3.48171,3651.3,3651.2,0.4603]
[1736249598306,3.48171,3651.3,3651.2,0.73422]
[1736249598698,3.48171,3651.3,3651.2,0.4603]
[1736249598908,3.48171,3651.3,3651.2,0.73422]
[1736249599094,3.48171,3651.3,3651.2,0.4603]
[1736249600797,0.27392,3651.2,3650.7,0.27395]
[1736249601007,0.27395,3650.8,3650.7,0.69885]
[1736249601303,3.2078,3650.9,3650.7,0.4249]
[1736249601509,0.27395,3650.8,3650.7,0.4249]
[1736249602012,3.48175,3650.9,3650.8,0.27395]
[1736249602200,3.2078,3650.9,3650.7,0.69885]
[1736249602397,3.48174,3650.9,3650.8,0.27395]
[1736249603609,3.2078,3650.9,3650.8,0.27395]
[1736249603810,3.48174,3650.9,3650.8,0.27395]
[1736249604014,3.2078,3650.9,3650.8,0.27395]
[1736249605312,3.48174,3650.9,3650.8,0.27395]
[1736249605713,3.2078,3650.9,3650.8,0.27395]
[1736249605909,3.48174,3650.9,3650.8,0.27395]
[1736249606212,3.2078,3650.9,3650.8,0.27395]
[1736249607101,3.48174,3650.9,3650.8,0.27395]
[1736249607501,3.2078,3650.9,3650.8,0.27395]
[1736249608208,3.48174,3650.9,3650.8,0.27395]
[1736249608418,3.2078,3650.9,3650.8,0.27395]
[1736249610710,0.27392,3651.2,3650.8,0.27395]
[1736249610916,3.48171,3651.3,3651.2,0.27392]
[1736249613018,0.27391,3651.3,3651.2,0.27392]
[1736249613220,3.48171,3651.3,3651.2,0.27392]
[1736249613412,4.4723422,3651.3,3651.2,0.27392]
[1736249617916,3.48171,3651.3,3651.2,0.27392]
[1736249629625,5.61301261,3651.3,3651.2,0.27392]
[1736249630732,0.27393,3651.2,3651.1,0.27392]
[1736249633031,3.88190871,3651.2,3651.1,0.27392]
[1736249634433,0.68495479,3651.2,3651.1,0.27392]
[1736249636837,10.91364074,3651.2,3651.1,0.27392]
[1736249637033,11.90427294,3651.2,3651.1,0.27392]
[1736249638534,6.56164339,3651.2,3651.1,0.27392]
[1736249639735,1.2645622,3651.2,3651.1,0.27392]
[1736249641234,6.56164339,3651.2,3651.1,0.27392]
[1736249641634,5.57101119,3651.2,3651.1,0.27392]
[1736249642938,0.27393,3651.1,3651.0,0.445]
[1736249643138,0.27393,3651.0,3650.9,0.439]
[1736249643333,0.27398,3650.4,3650.1,10.75006511]
[1736249643537,4.4724122,3650.4,3650.1,10.75006511]
[1736249643736,0.27399,3650.2,3650.1,8.55110201]
[1736249644242,1.2646222,3650.2,3650.1,8.55110201]
[1736249644437,7.2552544,3650.2,3650.1,8.55110201]
[1736249644739,0.27401,3650.0,3649.9,4.54e-06]
[1736249644933,5.4630744,3650.0,3649.9,4.54e-06]
[1736249645135,10.22312451,3650.0,3649.9,4.54e-06]
[1736249645437,13.30438891,3650.0,3649.9,4.54e-06]
[1736249645641,0.27406,3649.4,3649.2,0.27406]
[1736249645829,0.9906322,3649.3,3649.2,0.27407]
[1736249646436,10.65164013,3649.3,3649.2,0.27407]
[1736249646641,10.65164013,3649.3,3649.2,9.4725022]
[1736249647142,10.65164013,3649.3,3649.2,4.4725022]
[1736249647538,0.41102479,3649.3,3649.2,4.4725022]
[1736249647942,0.41102479,3649.3,3649.2,0.27407]
[1736249648142,0.41102479,3649.3,3649.2,1.2647022]
[1736249648645,0.41102479,3649.3,3649.2,0.27407]
[1736249648841,0.41102479,3649.3,3648.8,3.6695]
[1736249649044,0.41102479,3649.3,3649.2,0.27407]
[1736249650332,5.35455894,3649.7,3649.6,0.27404]
[1736249650533,5.35455894,3649.8,3649.7,0.27403]
[1736249651534,4.26983119,3649.8,3649.7,0.27403]
[1736249652044,2.19053119,3649.8,3649.7,0.27403]
[1736249652242,5.35455894,3650.3,3650.2,0.27399]
[1736249652555,5.35455894,3650.7,3650.6,0.27396]
[1736249653639,3.2078,3650.8,3650.2,3.2078]
[1736249653842,3.2078,3650.8,3650.7,0.27396]
[1736249654836,9.79319491,3650.8,3650.7,0.27396]
[1736249655350,0.27396,3650.7,3650.6,0.27396]
[1736249655644,9.79319491,3650.8,3650.7,0.27396]
[1736249655836,10.06714491,3650.8,3650.7,0.27396]
[1736249656040,10.06714491,3650.8,3650.1,0.685]
[1736249656041,0.27396,3650.6,3650.5,0.27396]
[1736249656445,7.27825491,3650.7,3650.6,0.27396]
[1736249656844,5.77345894,3650.7,3650.2,0.4167]
[1736249657040,3.2078,3650.4,3650.2,0.4167]
[1736249657244,0.274,3650.2,3650.1,0.274]
[1736249658045,0.4265,3650.3,3649.7,0.4167]
[1736249658252,0.70049,3650.3,3650.2,0.27399]
[1736249658448,0.27401,3650.1,3650.0,0.274]
[1736249658954,0.274,3650.2,3650.1,0.274]
[1736249659249,5.62855894,3650.2,3650.1,0.274]
[1736249659450,0.27402,3650.0,3649.9,0.27401]
[1736249660049,5.40530604,3650.0,3648.1,1.093]
[1736249660250,0.2741,3648.9,3648.8,0.27409]
[1736249660752,0.8495,3649.0,3648.3,0.68534]
[1736249660953,0.27411,3648.8,3648.7,0.2741]
[1736249661153,0.8495,3649.0,3648.7,0.2741]
[1736249661351,0.27412,3648.6,3648.5,0.27412]
[1736249661546,3.2078,3648.7,3647.9,2.19750604]
[1736249661756,0.27412,3648.5,3648.4,0.27413]
[1736249662054,3.2078,3648.7,3647.9,2.19750604]
[1736249662351,3.2078,3648.2,3647.9,2.19750604]
[1736249662554,3.2078,3648.2,3647.7,3.2078]
[1736249662555,3.2078,3648.2,3648.1,0.27415]
[1736249663755,0.27411,3648.7,3648.5,0.27412]
[1736249663756,3.2078,3648.6,3648.5,0.27412]
[1736249664147,10.08487011,3648.6,3648.5,0.27412]
[1736249664453,3.2078,3648.6,3648.5,0.27412]
[1736249664751,3.48191,3648.6,3648.5,0.27412]
[1736249665054,0.27412,3648.5,3648.4,0.27413]
[1736249665457,3.2078,3648.6,3647.7,3.2078]
[1736249665753,3.2078,3648.6,3647.7,3.89326]
[1736249665954,0.27412,3648.5,3648.4,0.27413]
[1736249666155,3.2078,3648.6,3647.8,0.68544]
[1736249666355,3.2078,3648.3,3648.2,0.27414]
[1736249667356,3.48194,3648.3,3648.2,0.27414]
[1736249667856,3.2078,3648.3,3648.2,0.27414]
[1736249668542,5.33468308,3648.3,3648.2,0.27414]
[1736249669148,5.77418308,3648.3,3648.2,0.27414]
[1736249669850,6.04832308,3648.3,3648.2,0.27414]